[Event "Late-Titled-Tuesday-Blitz-March-19-2024"]
[Site "Chess.com"]
[Date "2024.03.19"]
[Round "3"]
[White "diamonds13"]
[Black "Byniolus"]
[Result "0-1"]
[WhiteElo "2373"]
[BlackElo "2797"]
[TimeControl "180+1"]
[EndTime "14:27:57 PDT"]
[Termination "Byniolus won by checkmate"]

1. d4 {[%clk 0:03:00.9]} 1... d6 {[%clk 0:03:00]} 2. e4 {[%clk 0:02:59.5]} 2...
Nf6 {[%clk 0:02:59.9]} 3. Bd3 {[%clk 0:02:58.7]} 3... e5 {[%clk 0:02:59.8]} 4.
c3 {[%clk 0:02:55.9]} 4... d5 {[%clk 0:03:00.2]} 5. dxe5 {[%clk 0:02:55]} 5...
dxe4 {[%clk 0:03:00.8]} 6. Bb5+ {[%clk 0:02:53.7]} 6... c6 {[%clk 0:03:01.3]} 7.
Qxd8+ {[%clk 0:02:50.1]} 7... Kxd8 {[%clk 0:03:02.2]} 8. exf6 {[%clk 0:02:48.5]}
8... cxb5 {[%clk 0:03:03.1]} 9. Bg5 {[%clk 0:02:47.9]} 9... Ke8 {[%clk
0:02:56.4]} 10. Nd2 {[%clk 0:02:45.9]} 10... Bf5 {[%clk 0:02:55.1]} 11. g4
{[%clk 0:02:44]} 11... Bxg4 {[%clk 0:02:36.3]} 12. Nxe4 {[%clk 0:02:43.3]} 12...
Nd7 {[%clk 0:02:35.7]} 13. fxg7 {[%clk 0:02:31.6]} 13... Bxg7 {[%clk 0:02:36.6]}
14. f3 {[%clk 0:02:31.6]} 14... Bh5 {[%clk 0:02:21.2]} 15. O-O-O {[%clk
0:02:31]} 15... f6 {[%clk 0:02:13.7]} 16. Nd6+ {[%clk 0:02:29.7]} 16... Kf8
{[%clk 0:02:09.1]} 17. Nxb7 {[%clk 0:02:17.1]} 17... Ne5 {[%clk 0:01:58.3]} 18.
Bf4 {[%clk 0:02:11]} 18... Nxf3 {[%clk 0:01:53.4]} 19. Rf1 {[%clk 0:01:54]}
19... Nxg1 {[%clk 0:01:09.6]} 20. Rhxg1 {[%clk 0:01:53.9]} 20... Bg6 {[%clk
0:01:08.1]} 21. Nc5 {[%clk 0:01:51.4]} 21... Kf7 {[%clk 0:01:02.9]} 22. Nd7
{[%clk 0:01:42.8]} 22... Rhe8 {[%clk 0:00:56.3]} 23. Bg5 {[%clk 0:01:22]} 23...
Re6 {[%clk 0:00:56]} 24. Bh4 {[%clk 0:00:57.8]} 24... Rd8 {[%clk 0:00:48.2]} 25.
Nc5 {[%clk 0:00:56.1]} 25... Re2 {[%clk 0:00:42.4]} 26. Rf2 {[%clk 0:00:56.3]}
26... Rdd2 {[%clk 0:00:34.7]} 27. Rgf1 {[%clk 0:00:42.1]} 27... Bh6 {[%clk
0:00:12.4]} 28. Rxf6+ {[%clk 0:00:36.3]} 28... Kg8 {[%clk 0:00:12.4]} 29. Ne6
{[%clk 0:00:14.5]} 29... Rc2+ {[%clk 0:00:10.7]} 30. Kd1 {[%clk 0:00:12.7]}
30... Red2+ {[%clk 0:00:10.8]} 31. Ke1 {[%clk 0:00:12.3]} 31... Rc1# {[%clk
0:00:11.7]} 0-1

[Event "Late-Titled-Tuesday-Blitz-March-19-2024"]
[Site "Chess.com"]
[Date "2024.03.19"]
[Round "3"]
[White "masnyszachistaaa"]
[Black "ViIIagra"]
[Result "1-0"]
[WhiteElo "2569"]
[BlackElo "2905"]
[TimeControl "180+1"]
[EndTime "14:27:57 PDT"]
[Termination "masnyszachistaaa won by resignation"]

1. c4 {[%clk 0:03:00.9]} 1... d6 {[%clk 0:03:00.9]} 2. Nf3 {[%clk 0:02:57.9]}
2... e5 {[%clk 0:03:01.4]} 3. e4 {[%clk 0:02:46.7]} 3... Bg4 {[%clk 0:02:54.7]}
4. Be2 {[%clk 0:02:38.4]} 4... Nf6 {[%clk 0:02:51.1]} 5. Nc3 {[%clk 0:02:34.1]}
5... Be7 {[%clk 0:02:50.4]} 6. O-O {[%clk 0:02:28.6]} 6... c5 {[%clk 0:02:49.8]}
7. d3 {[%clk 0:02:01.6]} 7... O-O {[%clk 0:02:44.4]} 8. Bg5 {[%clk 0:01:57.5]}
8... Ne8 {[%clk 0:02:40.9]} 9. Bxe7 {[%clk 0:01:52.9]} 9... Qxe7 {[%clk
0:02:41.8]} 10. Nd5 {[%clk 0:01:53.4]} 10... Qd8 {[%clk 0:02:42.2]} 11. Ne1
{[%clk 0:01:52.9]} 11... Be6 {[%clk 0:02:41.9]} 12. Nc2 {[%clk 0:01:50.1]} 12...
Nc6 {[%clk 0:02:42]} 13. f4 {[%clk 0:01:47.6]} 13... Nd4 {[%clk 0:02:32]} 14.
Nce3 {[%clk 0:01:36.7]} 14... Bxd5 {[%clk 0:02:29.7]} 15. Nxd5 {[%clk
0:01:35.5]} 15... Nc7 {[%clk 0:02:30]} 16. fxe5 {[%clk 0:01:29.2]} 16... dxe5
{[%clk 0:02:28.3]} 17. Bg4 {[%clk 0:01:22.7]} 17... Nxd5 {[%clk 0:02:18.7]} 18.
cxd5 {[%clk 0:01:14]} 18... Qd6 {[%clk 0:02:18.9]} 19. Rc1 {[%clk 0:01:12.4]}
19... b6 {[%clk 0:02:19.4]} 20. Qd2 {[%clk 0:01:07.4]} 20... f6 {[%clk
0:02:18.3]} 21. Qe3 {[%clk 0:01:00.1]} 21... Rf7 {[%clk 0:02:18.6]} 22. Qh3
{[%clk 0:00:59.2]} 22... Re8 {[%clk 0:02:16.7]} 23. Rf2 {[%clk 0:00:59.1]} 23...
g6 {[%clk 0:02:17.2]} 24. Rcf1 {[%clk 0:00:56.2]} 24... Kg7 {[%clk 0:02:17.7]}
25. Qh4 {[%clk 0:00:55.2]} 25... Ref8 {[%clk 0:02:17.8]} 26. Bd1 {[%clk
0:00:53]} 26... f5 {[%clk 0:02:17.6]} 27. g3 {[%clk 0:00:47.3]} 27... f4 {[%clk
0:02:16.4]} 28. gxf4 {[%clk 0:00:45.8]} 28... exf4 {[%clk 0:02:17.3]} 29. Kh1
{[%clk 0:00:39.2]} 29... f3 {[%clk 0:02:17.2]} 30. Qg3 {[%clk 0:00:35.4]} 30...
Rf4 {[%clk 0:02:15.1]} 31. Bxf3 {[%clk 0:00:25]} 31... Qf6 {[%clk 0:02:14]} 32.
Kg2 {[%clk 0:00:22.9]} 32... Nxf3 {[%clk 0:02:06.3]} 33. Rxf3 {[%clk 0:00:23]}
33... Rxf3 {[%clk 0:02:07.2]} 34. Rxf3 {[%clk 0:00:21.6]} 34... Qxb2+ {[%clk
0:02:07.4]} 35. Kh3 {[%clk 0:00:20.6]} 35... Rxf3 {[%clk 0:02:04.4]} 36. Qxf3
{[%clk 0:00:21.5]} 36... Qf6 {[%clk 0:02:01.2]} 37. Qg4 {[%clk 0:00:20.5]} 37...
h5 {[%clk 0:01:59.8]} 38. Qd7+ {[%clk 0:00:20]} 38... Kh6 {[%clk 0:02:00.5]} 39.
Kg2 {[%clk 0:00:19]} 39... Qg5+ {[%clk 0:01:59.4]} 40. Kf3 {[%clk 0:00:17.8]}
40... Qd2 {[%clk 0:01:59.9]} 41. Qe8 {[%clk 0:00:11.3]} 41... Qxd3+ {[%clk
0:02:00]} 42. Kf4 {[%clk 0:00:11.6]} 42... Qd2+ {[%clk 0:01:59.2]} 43. Ke5
{[%clk 0:00:11.5]} 43... Qxh2+ {[%clk 0:01:59.7]} 44. Ke6 {[%clk 0:00:09.5]}
44... Qf4 {[%clk 0:01:59.8]} 45. e5 {[%clk 0:00:08.5]} 45... c4 {[%clk
0:01:54.1]} 46. Qh8+ {[%clk 0:00:08.1]} 46... Kg5 {[%clk 0:01:53.7]} 47. Qf6+
{[%clk 0:00:03.6]} 47... Qxf6+ {[%clk 0:01:53.8]} 48. exf6 {[%clk 0:00:04.5]}
48... c3 {[%clk 0:01:54.7]} 49. f7 {[%clk 0:00:05.1]} 49... c2 {[%clk
0:01:55.6]} 50. f8=Q {[%clk 0:00:05.7]} 50... c1=Q {[%clk 0:01:56.5]} 51. Qf6+
{[%clk 0:00:06.2]} 51... Kg4 {[%clk 0:01:52.1]} 52. Qxg6+ {[%clk 0:00:06.6]}
52... Kh4 {[%clk 0:01:52.8]} 53. Qf6+ {[%clk 0:00:05.5]} 53... Kg3 {[%clk
0:01:52.4]} 54. d6 {[%clk 0:00:05.4]} 54... Qc4+ {[%clk 0:01:32.5]} 55. Ke7
{[%clk 0:00:05.4]} 55... Qe4+ {[%clk 0:01:32.7]} 56. Qe6 {[%clk 0:00:05.2]}
56... Qh7+ {[%clk 0:01:31.6]} 57. Qf7 {[%clk 0:00:05.7]} 57... Qe4+ {[%clk
0:01:31.6]} 58. Kf8 {[%clk 0:00:05.3]} 58... h4 {[%clk 0:01:23.5]} 59. d7 {[%clk
0:00:05.8]} 59... Qd3 {[%clk 0:01:24.2]} 60. Qg7+ {[%clk 0:00:05.3]} 60... Kf2
{[%clk 0:01:23.6]} 61. Qf6+ {[%clk 0:00:05.5]} 1-0

[Event "Late-Titled-Tuesday-Blitz-March-19-2024"]
[Site "Chess.com"]
[Date "2024.03.19"]
[Round "3"]
[White "Bastiandash"]
[Black "HanSchut"]
[Result "1-0"]
[WhiteElo "2605"]
[BlackElo "2318"]
[TimeControl "180+1"]
[EndTime "14:27:58 PDT"]
[Termination "Bastiandash won on time"]

1. e4 {[%clk 0:03:00.9]} 1... c5 {[%clk 0:02:56.7]} 2. b3 {[%clk 0:02:57.7]}
2... Nc6 {[%clk 0:02:54.7]} 3. Bb2 {[%clk 0:02:57.2]} 3... d6 {[%clk 0:02:51.1]}
4. Bb5 {[%clk 0:02:57.2]} 4... Bd7 {[%clk 0:02:50.7]} 5. f4 {[%clk 0:02:57.5]}
5... Nd4 {[%clk 0:02:50.2]} 6. Bxd7+ {[%clk 0:02:53.9]} 6... Qxd7 {[%clk
0:02:50.4]} 7. Nf3 {[%clk 0:02:50.7]} 7... Nxf3+ {[%clk 0:02:47.5]} 8. Qxf3
{[%clk 0:02:50.9]} 8... e6 {[%clk 0:02:44.8]} 9. O-O {[%clk 0:02:49.2]} 9... d5
{[%clk 0:02:38.5]} 10. d3 {[%clk 0:02:45.4]} 10... O-O-O {[%clk 0:02:21.1]} 11.
Nd2 {[%clk 0:02:20.5]} 11... d4 {[%clk 0:02:08.1]} 12. a4 {[%clk 0:02:14.8]}
12... Nf6 {[%clk 0:02:06.4]} 13. Nc4 {[%clk 0:02:13.6]} 13... Be7 {[%clk
0:02:02.3]} 14. a5 {[%clk 0:02:09.5]} 14... Kb8 {[%clk 0:02:00.7]} 15. Ne5
{[%clk 0:01:50.8]} 15... Qe8 {[%clk 0:01:56.8]} 16. c3 {[%clk 0:01:50]} 16...
dxc3 {[%clk 0:01:39.2]} 17. Bxc3 {[%clk 0:01:50.9]} 17... Rg8 {[%clk 0:01:30.9]}
18. Nc4 {[%clk 0:01:33.2]} 18... Qd7 {[%clk 0:01:06]} 19. Be5+ {[%clk
0:01:30.7]} 19... Kc8 {[%clk 0:01:01.6]} 20. a6 {[%clk 0:01:14.2]} 20... Qxd3
{[%clk 0:00:45]} 21. Nb6+ {[%clk 0:00:41.8]} 21... axb6 {[%clk 0:00:43.7]} 22.
a7 {[%clk 0:00:42.7]} 22... Qxf3 {[%clk 0:00:28.4]} 23. a8=Q+ {[%clk 0:00:36.4]}
23... Kd7 {[%clk 0:00:28.8]} 24. Qxb7+ {[%clk 0:00:34.4]} 24... Ke8 {[%clk
0:00:28.8]} 25. Qc6+ {[%clk 0:00:25.7]} 25... Kf8 {[%clk 0:00:26.2]} 26. Rxf3
{[%clk 0:00:26.1]} 26... Nd7 {[%clk 0:00:21]} 27. Bd6 {[%clk 0:00:25.5]} 27...
f6 {[%clk 0:00:15.1]} 28. Rd1 {[%clk 0:00:23.3]} 28... Nb8 {[%clk 0:00:06.2]}
29. Qc7 {[%clk 0:00:18.8]} 1-0

[Event "Late-Titled-Tuesday-Blitz-March-19-2024"]
[Site "Chess.com"]
[Date "2024.03.19"]
[Round "3"]
[White "Actuary44"]
[Black "I-Mesquita"]
[Result "0-1"]
[WhiteElo "2509"]
[BlackElo "2721"]
[TimeControl "180+1"]
[EndTime "14:28:01 PDT"]
[Termination "I-Mesquita won on time"]

1. e4 {[%clk 0:03:00.9]} 1... e5 {[%clk 0:03:00.2]} 2. d4 {[%clk 0:03:00.8]}
2... exd4 {[%clk 0:03:00]} 3. c3 {[%clk 0:03:01.4]} 3... Qe7 {[%clk 0:02:59.6]}
4. Qxd4 {[%clk 0:02:57.1]} 4... Nc6 {[%clk 0:02:58.1]} 5. Qe3 {[%clk 0:02:55.6]}
5... Nf6 {[%clk 0:02:57.6]} 6. Bd3 {[%clk 0:02:55.5]} 6... d5 {[%clk 0:02:56.4]}
7. exd5 {[%clk 0:02:52.7]} 7... Qxe3+ {[%clk 0:02:50.7]} 8. Bxe3 {[%clk
0:02:53.6]} 8... Nxd5 {[%clk 0:02:51.1]} 9. Bd2 {[%clk 0:02:53.5]} 9... Bg4
{[%clk 0:02:42.8]} 10. f3 {[%clk 0:02:51.4]} 10... Bh5 {[%clk 0:02:38]} 11. Ne2
{[%clk 0:02:51.1]} 11... O-O-O {[%clk 0:02:37.9]} 12. Bf5+ {[%clk 0:02:35]}
12... Kb8 {[%clk 0:02:37.2]} 13. O-O {[%clk 0:02:32.8]} 13... Bc5+ {[%clk
0:02:36.8]} 14. Kh1 {[%clk 0:02:32.1]} 14... Be3 {[%clk 0:02:27.9]} 15. Be1
{[%clk 0:02:28.1]} 15... Rhe8 {[%clk 0:02:14.1]} 16. Na3 {[%clk 0:02:23]} 16...
Bc5 {[%clk 0:02:05.7]} 17. Ng3 {[%clk 0:02:11.6]} 17... Ne3 {[%clk 0:02:01.9]}
18. Nxh5 {[%clk 0:01:56.2]} 18... Nxf1 {[%clk 0:01:57.6]} 19. Nxg7 {[%clk
0:01:56.2]} 19... Rg8 {[%clk 0:01:52]} 20. Nh5 {[%clk 0:01:55.6]} 20... Ne3
{[%clk 0:01:21.3]} 21. Be4 {[%clk 0:01:30]} 21... Rxg2 {[%clk 0:01:03]} 22. Nc4
{[%clk 0:01:18.2]} 22... Re2 {[%clk 0:00:48.6]} 23. Nxe3 {[%clk 0:01:12]} 23...
Bxe3 {[%clk 0:00:42.1]} 24. Ng3 {[%clk 0:00:59.8]} 24... Rxb2 {[%clk 0:00:40.2]}
25. Bxh7 {[%clk 0:00:54.8]} 25... Rh8 {[%clk 0:00:37.7]} 26. Rb1 {[%clk
0:00:49.4]} 26... Rxa2 {[%clk 0:00:32.4]} 27. Nf1 {[%clk 0:00:35.6]} 27... Rxh7
{[%clk 0:00:19.1]} 28. Nxe3 {[%clk 0:00:35.9]} 28... Rhxh2+ {[%clk 0:00:18.2]}
29. Kg1 {[%clk 0:00:36.5]} 29... Ne5 {[%clk 0:00:18.1]} 0-1

[Event "Late-Titled-Tuesday-Blitz-March-19-2024"]
[Site "Chess.com"]
[Date "2024.03.19"]
[Round "3"]
[White "1g60-1"]
[Black "ventdelest"]
[Result "1-0"]
[WhiteElo "2368"]
[BlackElo "2021"]
[TimeControl "180+1"]
[EndTime "14:28:01 PDT"]
[Termination "1g60-1 won on time"]

1. e4 {[%clk 0:03:00.9]} 1... d6 {[%clk 0:02:58.2]} 2. d4 {[%clk 0:03:00.5]}
2... Nf6 {[%clk 0:02:58.4]} 3. Nc3 {[%clk 0:03:01]} 3... g6 {[%clk 0:02:57.8]}
4. Be3 {[%clk 0:03:00.7]} 4... Bg7 {[%clk 0:02:57.9]} 5. f3 {[%clk 0:03:01.1]}
5... O-O {[%clk 0:02:56.8]} 6. Qd2 {[%clk 0:03:01.7]} 6... e5 {[%clk 0:02:55]}
7. O-O-O {[%clk 0:03:01.4]} 7... exd4 {[%clk 0:02:52]} 8. Bxd4 {[%clk
0:03:02.3]} 8... Nc6 {[%clk 0:02:46.3]} 9. Be3 {[%clk 0:03:02.4]} 9... Be6
{[%clk 0:02:44.7]} 10. h4 {[%clk 0:03:02.5]} 10... h5 {[%clk 0:02:41.6]} 11. Bh6
{[%clk 0:03:02.1]} 11... Ne5 {[%clk 0:02:35.3]} 12. Bxg7 {[%clk 0:02:59]} 12...
Kxg7 {[%clk 0:02:34.4]} 13. Nh3 {[%clk 0:02:57.9]} 13... Bxh3 {[%clk 0:02:22.9]}
14. Rxh3 {[%clk 0:02:55.4]} 14... Qe7 {[%clk 0:02:11.8]} 15. Be2 {[%clk
0:02:52]} 15... Rad8 {[%clk 0:02:03.6]} 16. Rg1 {[%clk 0:02:50.4]} 16... c6
{[%clk 0:01:52.4]} 17. g4 {[%clk 0:02:48.4]} 17... d5 {[%clk 0:01:50.6]} 18. g5
{[%clk 0:02:47.5]} 18... Nh7 {[%clk 0:01:40]} 19. exd5 {[%clk 0:02:46.5]} 19...
cxd5 {[%clk 0:01:28.5]} 20. Qd4 {[%clk 0:02:45.8]} 20... Kg8 {[%clk 0:01:15.1]}
21. Rhh1 {[%clk 0:02:33.2]} 21... Qe6 {[%clk 0:00:54]} 22. Qxa7 {[%clk
0:02:00.6]} 22... d4 {[%clk 0:00:43.3]} 23. Ne4 {[%clk 0:01:53.2]} 23... Ra8
{[%clk 0:00:31.8]} 24. Qxd4 {[%clk 0:01:51.6]} 24... Rxa2 {[%clk 0:00:26.5]} 25.
Nc3 {[%clk 0:01:29.9]} 25... Nc6 {[%clk 0:00:21.9]} 26. Qe4 {[%clk 0:01:20.4]}
26... Ra1+ {[%clk 0:00:19.9]} 27. Kd2 {[%clk 0:01:20.2]} 27... Rd8+ {[%clk
0:00:18.9]} 28. Bd3 {[%clk 0:01:20.3]} 28... Rxg1 {[%clk 0:00:15]} 29. Rxg1
{[%clk 0:01:17.7]} 29... Qh3 {[%clk 0:00:12]} 30. Re1 {[%clk 0:01:09.1]} 30...
Qh2+ {[%clk 0:00:08.8]} 31. Re2 {[%clk 0:01:08.8]} 31... Qg3 {[%clk 0:00:09.3]}
32. Nd5 {[%clk 0:01:04]} 32... Nd4 {[%clk 0:00:08.6]} 33. Qxd4 {[%clk
0:01:02.1]} 33... Rxd5 {[%clk 0:00:06.4]} 34. Qxd5 {[%clk 0:01:01.2]} 34... Qf4+
{[%clk 0:00:07.3]} 35. Kd1 {[%clk 0:00:59.4]} 35... Qxh4 {[%clk 0:00:07.1]} 36.
Bxg6 {[%clk 0:00:56.4]} 36... Qh1+ {[%clk 0:00:05.4]} 37. Re1 {[%clk 0:00:56.1]}
37... Qxf3+ {[%clk 0:00:02.4]} 38. Qxf3 {[%clk 0:00:54.9]} 38... fxg6 {[%clk
0:00:02.4]} 39. Re7 {[%clk 0:00:51.1]} 39... Nxg5 {[%clk 0:00:01.2]} 40. Qf6
{[%clk 0:00:50.6]} 1-0

[Event "Late-Titled-Tuesday-Blitz-March-19-2024"]
[Site "Chess.com"]
[Date "2024.03.19"]
[Round "3"]
[White "DanielNaroditsky"]
[Black "kids2010"]
[Result "1-0"]
[WhiteElo "3168"]
[BlackElo "2769"]
[TimeControl "180+1"]
[EndTime "14:28:02 PDT"]
[Termination "DanielNaroditsky won by resignation"]

1. e4 {[%clk 0:03:00.2]} 1... c6 {[%clk 0:02:58]} 2. Nf3 {[%clk 0:02:59.7]} 2...
d5 {[%clk 0:02:56.4]} 3. exd5 {[%clk 0:03:00.6]} 3... cxd5 {[%clk 0:02:57.3]} 4.
d4 {[%clk 0:03:01.5]} 4... Nc6 {[%clk 0:02:56]} 5. Bb5 {[%clk 0:03:01.5]} 5...
Bd7 {[%clk 0:02:54.5]} 6. c4 {[%clk 0:03:01.3]} 6... a6 {[%clk 0:02:46.7]} 7.
Ba4 {[%clk 0:02:58.3]} 7... Nf6 {[%clk 0:02:44.9]} 8. cxd5 {[%clk 0:02:52.1]}
8... Nxd5 {[%clk 0:02:42.3]} 9. O-O {[%clk 0:02:52.7]} 9... e6 {[%clk
0:02:41.4]} 10. Nc3 {[%clk 0:02:53]} 10... Be7 {[%clk 0:02:38.4]} 11. Bc2 {[%clk
0:02:47.6]} 11... O-O {[%clk 0:02:31.4]} 12. Qd3 {[%clk 0:02:47.8]} 12... Nf6
{[%clk 0:02:30.6]} 13. a3 {[%clk 0:02:47.7]} 13... h6 {[%clk 0:02:28.3]} 14. d5
{[%clk 0:02:45]} 14... exd5 {[%clk 0:01:30.2]} 15. Nxd5 {[%clk 0:02:40.7]} 15...
g6 {[%clk 0:01:26.1]} 16. Nxe7+ {[%clk 0:02:39.6]} 16... Qxe7 {[%clk 0:01:25.6]}
17. Re1 {[%clk 0:02:40.4]} 17... Be6 {[%clk 0:01:22.6]} 18. Bxh6 {[%clk
0:02:39.3]} 18... Rfd8 {[%clk 0:01:22.9]} 19. Qe3 {[%clk 0:02:20.5]} 19... Ng4
{[%clk 0:01:21.7]} 20. Qf4 {[%clk 0:02:19]} 20... Qc5 {[%clk 0:00:22.7]} 21. Re2
{[%clk 0:01:45]} 21... Nd4 {[%clk 0:00:19.8]} 22. Nxd4 {[%clk 0:01:36.5]} 22...
Rxd4 {[%clk 0:00:20.7]} 23. Qg5 {[%clk 0:01:19.8]} 23... Rd5 {[%clk 0:00:20.8]}
24. Qc1 {[%clk 0:01:15.1]} 24... Rad8 {[%clk 0:00:17.3]} 25. Bf4 {[%clk
0:01:08]} 25... Bf5 {[%clk 0:00:14.1]} 26. Bb3 {[%clk 0:00:53.7]} 26... Qxc1+
{[%clk 0:00:05.3]} 27. Rxc1 {[%clk 0:00:54.6]} 27... Rb5 {[%clk 0:00:05.7]} 28.
Ba4 {[%clk 0:00:47.6]} 28... Rbd5 {[%clk 0:00:02.2]} 29. h3 {[%clk 0:00:42.8]}
29... Nf6 {[%clk 0:00:01.2]} 30. Bb3 {[%clk 0:00:36.5]} 30... R5d7 {[%clk
0:00:01.5]} 31. g4 {[%clk 0:00:34.1]} 31... Bd3 {[%clk 0:00:01.7]} 32. Re5
{[%clk 0:00:31.7]} 32... Ne4 {[%clk 0:00:02.1]} 33. Re1 {[%clk 0:00:30.6]} 33...
Nd6 {[%clk 0:00:01.4]} 34. Bg5 {[%clk 0:00:30.6]} 34... Nb5 {[%clk 0:00:02]} 35.
Bxd8 {[%clk 0:00:30.8]} 35... Rxd8 {[%clk 0:00:02.9]} 36. Re8+ {[%clk
0:00:31.2]} 36... Rxe8 {[%clk 0:00:03.6]} 37. Rxe8+ {[%clk 0:00:31.6]} 37... Kg7
{[%clk 0:00:04.5]} 38. Re7 {[%clk 0:00:32.5]} 38... Nd4 {[%clk 0:00:02.2]} 39.
Rxf7+ {[%clk 0:00:32.4]} 39... Kh6 {[%clk 0:00:02.4]} 40. Bd5 {[%clk 0:00:32.7]}
1-0

[Event "Late-Titled-Tuesday-Blitz-March-19-2024"]
[Site "Chess.com"]
[Date "2024.03.19"]
[Round "3"]
[White "Lukianoo"]
[Black "chucksterf10"]
[Result "1-0"]
[WhiteElo "2842"]
[BlackElo "2565"]
[TimeControl "180+1"]
[EndTime "14:28:02 PDT"]
[Termination "Lukianoo won by resignation"]

1. e4 {[%clk 0:03:00.9]} 1... Nc6 {[%clk 0:03:00.1]} 2. d4 {[%clk 0:03:00.6]}
2... d5 {[%clk 0:03:00.4]} 3. e5 {[%clk 0:02:59.4]} 3... Bf5 {[%clk 0:03:00.2]}
4. c3 {[%clk 0:02:58.8]} 4... e6 {[%clk 0:03:00.5]} 5. h4 {[%clk 0:02:57.6]}
5... f6 {[%clk 0:03:00.3]} 6. g4 {[%clk 0:02:55.6]} 6... Be4 {[%clk 0:03:00]} 7.
f3 {[%clk 0:02:54.9]} 7... Bxb1 {[%clk 0:03:00.6]} 8. Rxb1 {[%clk 0:02:54.7]}
8... fxe5 {[%clk 0:03:01.3]} 9. dxe5 {[%clk 0:02:54.3]} 9... Nxe5 {[%clk
0:03:02.2]} 10. f4 {[%clk 0:02:52.8]} 10... Nc6 {[%clk 0:02:56.1]} 11. Nf3
{[%clk 0:02:50.7]} 11... Nf6 {[%clk 0:02:53.2]} 12. Ng5 {[%clk 0:02:47.7]} 12...
Qd7 {[%clk 0:02:31.5]} 13. Qe2 {[%clk 0:02:46.9]} 13... O-O-O {[%clk 0:02:28.1]}
14. Bh3 {[%clk 0:02:47]} 14... Re8 {[%clk 0:02:23.3]} 15. O-O {[%clk 0:02:40]}
15... Bc5+ {[%clk 0:02:20.6]} 16. Be3 {[%clk 0:02:35]} 16... Bxe3+ {[%clk
0:02:18.3]} 17. Qxe3 {[%clk 0:02:35.9]} 17... h6 {[%clk 0:02:16.8]} 18. Nf3
{[%clk 0:02:35.2]} 18... Ne4 {[%clk 0:02:17.2]} 19. Rbd1 {[%clk 0:02:27.2]}
19... Rhf8 {[%clk 0:02:06.8]} 20. c4 {[%clk 0:02:15.1]} 20... Qd6 {[%clk
0:02:06.4]} 21. Nd4 {[%clk 0:01:43.4]} 21... Qc5 {[%clk 0:01:27]} 22. a3 {[%clk
0:01:32.5]} 22... Qxc4 {[%clk 0:01:09.7]} 23. Nxc6 {[%clk 0:01:19.6]} 23... Qxc6
{[%clk 0:01:09.5]} 24. Qxa7 {[%clk 0:01:19.4]} 24... b6 {[%clk 0:00:51]} 25. Rc1
{[%clk 0:01:13.2]} 25... Qb7 {[%clk 0:00:35.1]} 26. Qa4 {[%clk 0:01:12.2]} 26...
Kb8 {[%clk 0:00:33.6]} 27. Bg2 {[%clk 0:01:08.4]} 27... Nc5 {[%clk 0:00:31.5]}
28. Qd1 {[%clk 0:00:57.8]} 28... Qa6 {[%clk 0:00:26.5]} 29. b4 {[%clk
0:00:52.7]} 29... Nb7 {[%clk 0:00:23.7]} 30. a4 {[%clk 0:00:43.5]} 30... Nd6
{[%clk 0:00:20.1]} 31. b5 {[%clk 0:00:43.2]} 31... Qa5 {[%clk 0:00:20.5]} 32.
Rc6 {[%clk 0:00:42.2]} 32... Nc4 {[%clk 0:00:18]} 33. Qd4 {[%clk 0:00:32.4]}
33... Qxa4 {[%clk 0:00:14]} 34. Ra1 {[%clk 0:00:29.7]} 34... Qxb5 {[%clk
0:00:13.1]} 35. Rxc4 {[%clk 0:00:29.6]} 35... c5 {[%clk 0:00:11.9]} 36. Qe5+
{[%clk 0:00:29.2]} 36... Kb7 {[%clk 0:00:11.6]} 37. Rca4 {[%clk 0:00:28.9]}
37... Ra8 {[%clk 0:00:10.4]} 38. Rxa8 {[%clk 0:00:28.6]} 38... Rxa8 {[%clk
0:00:11.3]} 39. Bxd5+ {[%clk 0:00:27.6]} 1-0

[Event "Late-Titled-Tuesday-Blitz-March-19-2024"]
[Site "Chess.com"]
[Date "2024.03.19"]
[Round "3"]
[White "JosephRyan"]
[Black "Orest_Vovk"]
[Result "1-0"]
[WhiteElo "2272"]
[BlackElo "2491"]
[TimeControl "180+1"]
[EndTime "14:28:06 PDT"]
[Termination "JosephRyan won by checkmate"]

1. e4 {[%clk 0:03:00.9]} 1... g5 {[%clk 0:02:39.4]} 2. d4 {[%clk 0:02:56.9]}
2... g4 {[%clk 0:02:39.3]} 3. c3 {[%clk 0:02:47.2]} 3... d5 {[%clk 0:02:38.9]}
4. e5 {[%clk 0:02:42.6]} 4... c5 {[%clk 0:02:39.3]} 5. f4 {[%clk 0:02:40.3]}
5... gxf3 {[%clk 0:02:36.2]} 6. Nxf3 {[%clk 0:02:39.8]} 6... Nc6 {[%clk
0:02:35.9]} 7. Bb5 {[%clk 0:02:35.7]} 7... Bg4 {[%clk 0:02:33.7]} 8. O-O {[%clk
0:02:32.4]} 8... Qb6 {[%clk 0:02:33.6]} 9. Bxc6+ {[%clk 0:02:25.8]} 9... bxc6
{[%clk 0:02:33.4]} 10. Nbd2 {[%clk 0:02:09.2]} 10... e6 {[%clk 0:02:24.8]} 11.
Nb3 {[%clk 0:01:59.2]} 11... f5 {[%clk 0:02:11.1]} 12. exf6 {[%clk 0:01:50.5]}
12... Nxf6 {[%clk 0:02:05.7]} 13. Bf4 {[%clk 0:01:44]} 13... Ne4 {[%clk
0:01:46.5]} 14. Qe1 {[%clk 0:01:33.1]} 14... Rg8 {[%clk 0:01:00.1]} 15. Qh4
{[%clk 0:01:28.2]} 15... Bxf3 {[%clk 0:00:49.5]} 16. Rxf3 {[%clk 0:01:23]} 16...
c4 {[%clk 0:00:20.6]} 17. Qh5+ {[%clk 0:01:20]} 17... Kd7 {[%clk 0:00:18]} 18.
Nd2 {[%clk 0:01:06]} 18... Nxd2 {[%clk 0:00:12.6]} 19. Bxd2 {[%clk 0:01:01.1]}
19... Qxb2 {[%clk 0:00:12.2]} 20. Qxh7+ {[%clk 0:00:54.3]} 20... Be7 {[%clk
0:00:11.6]} 21. Rb1 {[%clk 0:00:49]} 21... Rxg2+ {[%clk 0:00:02.8]} 22. Kxg2
{[%clk 0:00:45.7]} 22... Qxd2+ {[%clk 0:00:03.7]} 23. Kh1 {[%clk 0:00:38.9]}
23... Kd6 {[%clk 0:00:03.9]} 24. Rb7 {[%clk 0:00:33.9]} 24... Qe1+ {[%clk
0:00:02.3]} 25. Kg2 {[%clk 0:00:32.6]} 25... Qe2+ {[%clk 0:00:02.1]} 26. Kg3
{[%clk 0:00:24.3]} 26... Re8 {[%clk 0:00:01.1]} 27. Qh5 {[%clk 0:00:12]} 27...
Qe1+ {[%clk 0:00:02]} 28. Kg2 {[%clk 0:00:11]} 28... Rg8+ {[%clk 0:00:01.8]} 29.
Rg3 {[%clk 0:00:10.8]} 29... Qd2+ {[%clk 0:00:02.3]} 30. Kh3 {[%clk 0:00:10.6]}
30... Rf8 {[%clk 0:00:03.2]} 31. Qe5# {[%clk 0:00:09.6]} 1-0